Cogmind - Beta 16 @@@ ROGUE MODE // 2025.11.02 @ 17:46:42 Player: Mozco Result: Destroyed by G-34 Mercenary with Small Laser Performance ------------- Evolutions (1) 500 Regions Visited (2) 400 Robots Destroyed (19) 95 Value Destroyed (553) 553 Prototype IDs (0) 0 Alien Tech Used (0) 0 Bonus (0) 0 TOTAL SCORE: 1548 Bonus ------- None Cogmind --------- Core Integrity 0/400 Matter 300/300 Energy 100/100 System Corruption 5% Temperature Cool (12) Movement Walking (190) Ox1 Location -9/Materials Parts ------- > --- POWER (1) -------- (None) > --- PROPULSION (4) --- Aluminum Leg Aluminum Leg > --- UTILITY (2) ------ Large Storage Unit > --- WEAPON (2) ------- Flail Mining Claw > --- INVENTORY (15) --- Improved Ion Engine Light Treads Aluminum Leg Aluminum Leg Improved Heat Sink Small Storage Unit Melee Analysis Suite Melee Analysis Suite Melee Analysis Suite Small Laser Field Laser Field Laser Peak State ------------ > --- POWER ------------ Light Ion Engine > --- PROPULSION ------- Aluminum Leg Aluminum Leg Aluminum Leg Aluminum Leg > --- UTILITY ---------- Large Storage Unit Melee Analysis Suite > --- WEAPON ----------- Flail Mining Claw > --- INVENTORY -------- Improved Heat Sink Small Storage Unit Melee Analysis Suite Melee Analysis Suite Melee Analysis Suite Small Laser Field Laser Field Laser Mining Claw [Rating: 14] Favorites ----------- Power Light Ion Engine Engine Light Ion Engine Propulsion Aluminum Leg Treads Light Treads Leg Aluminum Leg Wheel Compact Wheel Utility Large Storage Unit Storage Large Storage Unit Processor Melee Analysis Suite Protection Light Armor Plating Weapon Mining Claw Energy Gun Small Laser Ballistic Gun Assault Rifle Impact Weapon Flail Slashing Weapon Mining Claw Build | -11 -10 -9 ------- Run | Yrd Mat Mat Slots Evolved 2 | . . 2 Power . | . . . Propulsion 2 | . . 2 Utility . | . . . Weapon . | . . . Parts Attached 24 | 6 2 16 Power 2 | 1 . 1 Engine 2 | 1 . 1 Core . | . . . Reactor . | . . . Propulsion 11 | 2 . 9 Treads 3 | . . 3 Leg 6 | . . 6 Wheel 2 | 2 . . Hover . | . . . Flight . | . . . Utility 5 | 1 . 4 Device . | . . . Storage 2 | 1 . 1 Processor 1 | . . 1 Hackware . | . . . Protection 2 | . . 2 Artifact . | . . . Weapon 6 | 2 2 2 Energy Gun 1 | 1 . . Energy Cannon . | . . . Ballistic Gun 1 | 1 . . Ballistic Cannon . | . . . Launcher . | . . . Special Weapon . | . . . Impact Weapon 1 | . . 1 Slashing Weapon 3 | . 2 1 Piercing Weapon . | . . . Special Melee Weapon . | . . . Unidentified Prototypes . | . . . Parts Lost 9 | . . 9 Power 2 | . . 2 Propulsion 4 | . . 4 Utility 2 | . . 2 Weapon 1 | . . 1 Highest Loss Streak 4 | . . 4 To Critical Strikes . | . . . Average Backups 8 | 3 7 9 Power . | . 1 . Propulsion 2 | 2 4 2 Utility 2 | . . 3 Weapon 2 | . 1 2 Tool/Special . | . . . Unused Backups 8 | . . 8 Power . | . . . Propulsion 1 | . . 1 Utility 4 | . . 4 Weapon 3 | . . 3 Tool/Special . | . . . Average Slot Usage (%) 83 | . 84 83 Engine 7 | . 14 5 Treads 10 | . . 13 Leg 14 | . . 19 Wheel 8 | . 28 2 Storage 11 | . 14 11 Processor 1 | . . 1 Protection 5 | . . 7 Energy Gun 1 | . 5 . Ballistic Gun 1 | . 5 . Impact Weapon 8 | . . 10 Slashing Weapon 12 | . 16 11 Peak Build Rating 14 | 6 6 14 Average Rating 8 | 5 5 10 On Entrance 4 | . 6 6 Avg Prop Armor Cover (%) 6 | . 6 7 Naked Turns . | . . . Heaviest Build 30 | 11 12 30 Greatest Support 60 | 32 32 60 Greatest Overweight (x) . | . . . Average Overweight (x) . | . . . Largest Inventory Capacity 15 | 8 8 15 Average Capacity 11 | 7 8 13 Most Carried 14 | 6 8 14 Average Carried 8 | 3 7 9 Final Capacity 15 | 8 8 15 Final Carried 12 | 6 8 12 Class Distribution -------------------- 86% | Mutant 7% | Gladiator 6% | Scavenger-Mutant Dominant Class ---------------- Mutant | -10/Materials Mutant | -9/Materials Resources | -11 -10 -9 ----------- Run | Yrd Mat Mat Matter Collected 424 | 245 44 135 Remotely . | . . . Salvage Created 778 | . 94 684 Parts 40 | . 8 32 Haulers Intercepted 2 | . 1 1 Recyclers Shooed . | . . . Parts Field Recycled . | . . . Retrieved Matter . | . . . Parts Self-Destructed . | . . . Prevented . | . . . Parts Restored . | . . . Kills | -11 -10 -9 ------- Run | Yrd Mat Mat Combat Hostiles Destroyed 14 | . 1 13 Melee 11 | . 1 10 Classes Destroyed 7 | . 2 5 Worker 1 | . . 1 Hauler 2 | . 1 1 Recycler 1 | . . 1 Operator 1 | . . 1 Grunt 11 | . 1 10 Brawler 1 | . . 1 Sentry 2 | . . 2 Best Kill Streak 2 | . 1 2 Combat Bots Only 2 | . 1 2 Max Kills in Single Turn 1 | . 1 1 Gunslinging . | . . . Exploded . | . . . Melee 1 | . 1 1 Uniques/NPCs Destroyed . | . . . Combat | -11 -10 -9 -------- Run | Yrd Mat Mat Hostile Shots Fired 151 | . 10 141 Missed 34 | . 2 32 Hits 117 | . 8 109 Melee 11 | . . 11 Projectile 106 | . 8 98 Critical Strikes 2 | . . 2 Damage Taken 1657 | . 128 1529 Core 471 | . 62 409 Absorbed by Shields . | . . . Core Remaining (%) 87 | 100 75 . Volleys Fired 4 | . 4 . Largest 2 | . 2 . Hottest 60 | . 60 . Shots Fired 8 | . 8 . Gun 8 | . 8 . Cannon . | . . . Launcher . | . . . Special . | . . . Kinetic 4 | . 4 . Thermal 4 | . 4 . Explosive . | . . . Electromagnetic . | . . . Robot Hit Streak 2 | . 2 . Robot Miss Streak 1 | . 1 . Penetration Max . | . . . Secondary Targets . | . . . Shots Hit Robots 57 | . 4 53 Core Hits 20 | . 6 14 Critical Kills 2 | . . 2 Critical Parts Destroyed 4 | . . 4 Critical Strikes 6 | . . 6 Smash 6 | . . 6 Melee Attacks 75 | . . 75 Impact 38 | . . 38 Slashing 37 | . . 37 Piercing . | . . . Sneak Attacks 7 | . . 7 Combat Hostiles . | . . . Follow-up Attacks 4 | . . 4 Damage Inflicted 1819 | . 97 1722 Guns 42 | . 42 . Cannons . | . . . Explosions . | . . . Melee 1722 | . . 1722 Ramming 55 | . 55 . Kinetic 10 | . 10 . Thermal 32 | . 32 . Explosive . | . . . Electromagnetic . | . . . Impact 1106 | . . 1106 Slashing 616 | . . 616 Piercing . | . . . Highest Corruption 5 | . 3 5 Average Corruption 4 | . 2 5 Corruption Purged . | . . . Corruption Blocked . | . . . Effects 4 | . 1 3 Message Errors 2 | . . 2 Heat Flow Errors 1 | . . 1 Energy Discharges 1 | . 1 . Overload Shots . | . . . Overflow Damage 243 | . . 243 Projectiles . | . . . Explosions . | . . . Melee 243 | . . 243 Knockbacks 6 | . . 6 Impact 6 | . . 6 Kinetic . | . . . Secondary . | . . . Self-Inflicted Damage 22 | . 22 . Shots . | . . . Rammed 18 | . 18 . Targets Rammed 18 | . 18 . Kicked . | . . . Crushed . | . . . Highest Temperature 118 | . . 118 Average Temperature 68 | . . 68 Received Heat Transfer 627 | . 48 579 Siege Activations . | . . . Martial Activations . | . . . Shielding Activations . | . . . Robots Disrupted . | . . . Combat Hostiles . | . . . Robots Corrupted 3 | . . 3 Combat Hostiles 3 | . . 3 Parts Fried 3 | . . 3 Impact Corruptions 9 | . . 9 Robots Melted . | . . . Combat Hostiles . | . . . Parts Melted . | . . . Heat Transferred 75 | . 75 . Parts Sabotaged . | . . . Parts Stolen . | . . . Parts Stripped . | . . . Power Chain Reactions . | . . . Alert | -11 -10 -9 ------- Run | Yrd Mat Mat Maximum Alert Level . | . . . Low Security (%) 100 | 100 100 100 Level 1 . | . . . Level 2 . | . . . Level 3 . | . . . Level 4 . | . . . Level 5 . | . . . High Security . | . . . Max Security . | . . . Peak Influence 109 | . 30 109 Initial 8 | . . 8 Average 34 | . 4 47 Influence Increases 416 | . 37 379 Destroy 0b10 Robot/C 280 | . 20 260 Destroy 0b10 Robot/NC 25 | . 5 20 Destroy Leader 84 | . 12 72 Successful Hack 12 | . . 12 Lose Combat Pursuer 15 | . . 15 Influence Decreases 351 | . 17 334 Entered New Map 12 | . . 12 Time Decay 249 | . 17 232 Lost Part 90 | . . 90 Squads Dispatched 3 | . 1 2 Investigation . | . . . Extermination . | . . . Reinforcement 3 | . 1 2 Assault . | . . . Garrison . | . . . Intercept . | . . . Searches Triggered . | . . . Construction Impeded . | . . . Haulers Reinforced . | . . . Active Scanning Responses . | . . . Cargo Convoy Interrupts . | . . . Stealth | -11 -10 -9 --------- Run | Yrd Mat Mat Distress Signals 1 | . . 1 Communications Jammed . | . . . Distress Signals . | . . . Times Spotted 21 | . 2 19 Peak Tracking Total 4 | . 1 4 Tactical Retreats 1 | . . 1 Traps | -11 -10 -9 ------- Run | Yrd Mat Mat Traps Triggered . | . . . Indirectly . | . . . Trap Hack Attempts . | . . . Triggered . | . . . Disarmed . | . . . Reprogrammed . | . . . Reused . | . . . Traps Extracted . | . . . Installed . | . . . Triggered . | . . . Machines | -11 -10 -9 ---------- Run | Yrd Mat Mat Machines Disabled . | . . . Max in Single Turn . | . . . Machines Repaired . | . . . Machines Dismantled . | . . . Machines Sabotaged . | . . . Overloaded Fab Kills . | . . . Hacking | -11 -10 -9 --------- Run | Yrd Mat Mat Machines Accessed 2 | . . 2 Terminals 2 | . . 2 Fabricators . | . . . Repair Stations . | . . . Recycling Units . | . . . Scanalyzers . | . . . Garrison Access . | . . . Total Hacks 5 | . . 5 Successful 4 | . . 4 Failed 1 | . . 1 Catastrophic . | . . . Database Lockouts . | . . . Manual 6 | . . 6 Terminals 5 | . . 5 Fabricators . | . . . Repair Stations . | . . . Recycling Units . | . . . Scanalyzers . | . . . Garrison Access . | . . . Terminal Hacks 1 | . . 1 Robot Analysis 1 | . . 1 Fabricator Hacks . | . . . Repair Station Hacks . | . . . Recycling Unit Hacks . | . . . Scanalyzer . | . . . Garrison Access Hacks . | . . . Unauthorized Hacks 3 | . . 3 Terminals 3 | . . 3 Assimilate 1 | . . 1 Botnet 1 | . . 1 Operators 1 | . . 1 Fabricators . | . . . Repair Stations . | . . . Recycling Units . | . . . Scanalyzers . | . . . Garrison Access . | . . . Data Cores Recovered . | . . . Used . | . . . Hacking Detections 2 | . . 2 Full Trace Events . | . . . Feedback Events . | . . . Feedback Blocked . | . . . Robot Schematics Acquired . | . . . Robots Built . | . . . Authchips . | . . . Time . | . . . Total Robot Build Rating . | . . . Part Schematics Acquired . | . . . Parts Built . | . . . Authchips . | . . . Time . | . . . Total Part Build Rating . | . . . Part Studies Acquired . | . . . Parts Repaired . | . . . Time . | . . . Parts Recycled . | . . . Recycled Matter . | . . . Retrieved Matter . | . . . Retrieved Components . | . . . Parts Scanalyzed . | . . . Part Schematics Acquired . | . . . Parts Damaged . | . . . Bothacking | -11 -10 -9 ------------ Run | Yrd Mat Mat Used RIF Installer . | . . . Robots Hacked . | . . . Non-combat . | . . . Combat . | . . . Robot Hacks Applied . | . . . Relay Couplers Released . | . . . Fabnet Peak Effective % . | . . . Robots Rewired . | . . . Allies Hacked . | . . . Hacks Repelled . | . . . Allies | -11 -10 -9 -------- Run | Yrd Mat Mat Total Allies . | . . . Largest Group . | . . . Highest-Rated Group . | . . . Highest-Rated Ally . | . . . Total Orders . | . . . Ally Attacks . | . . . Total Damage . | . . . Kills . | . . . Allies Corrupted . | . . . Allies Melted . | . . . Intel | -11 -10 -9 ------- Run | Yrd Mat Mat Active Infowar (turns) . | . . . Robot Analysis Total 1 | . . 1 Derelict Logs Recovered . | . . . Drone Launches . | . . . Drone Recoveries . | . . . Exploration | -11 -10 -9 ------------- Run | Yrd Mat Mat Turns Passed 800 | 71 172 557 Spaces Moved 442 | 58 137 247 Core 2 | 2 . . Treads 101 | . . 101 Legs 107 | . . 107 Wheels 232 | 56 137 39 Hover . | . . . Flight . | . . . Fastest Speed 50 | 50 100 100 Average Speed 118 | 98 100 133 Slowest Speed 160 | 100 100 160 Overloaded Moves . | . . . Propulsion Burnouts . | . . . Robots Hopped . | . . . Potential Cave-ins . | . . . Cave-ins Triggered . | . . . Exploration Rate (%) 17 | 3 27 22 Regions Visited 2 Branch Regions . Pre-discovered Areas . | . . . Known Exits Taken . | . . . Unknown Exits Taken 2 | 1 1 . Scrap Searched . | . . . Spaces Dug . | . . . Terrain Destroyed . | . . . Melee . | . . . Projectile . | . . . AOE . | . . . Terrain Rammed . | . . . Walls Destroyed . | . . . Machines Disabled . | . . . Actions | -11 -10 -9 --------- Run | Yrd Mat Mat Total 588 | 69 164 355 Wait 15 | . . 15 Move 440 | 57 136 247 Hop . | . . . Pick Up 15 | 6 2 7 Fast Attach 13 | 6 2 5 Attach 8 | . . 8 Detach . | . . . Swap 3 | . . 3 Drop 6 | . 2 4 Fire 4 | . 4 . Melee 66 | . . 66 Ram 18 | . 18 . Kick . | . . . Crush . | . . . Escape Stasis . | . . . Rewire . | . . . Trap . | . . . Miscellaneous . | . . . Route ------- -11/Scrapyard -10/Materials -9/Materials History --------- Turn | Location | Event 2 | -11/Scrapyard | Met Revision 17 26 | -11/Scrapyard | Discovered new exit (range 14) 72 | -11/Scrapyard | Entered Materials 196 | -10/Materials | Discovered new exit (range 6) 244 | -10/Materials | Entered another Materials area 244 | -9/Materials | Evolved 2 slots: Propulsion x2 326 | -9/Materials | Build established: Mutant 578 | -9/Materials | Lost 4 parts (1p2n1u) 585 | -9/Materials | Core integrity fell below 50% 644 | -9/Materials | Lost 3 parts (1p1u1w) 770 | -9/Materials | Core integrity fell below 20% 801 | -9/Materials | Destroyed by G-34 Mercenary with Small Laser Last Messages --------------- 00642_ Extracted 2 matter. 00653_ R-06 Scavenger collects Med. Matter Pod. 00690_ Y-45 Defender destroyed. 00694_ RQ> ONJKEUU6AOCXMN%ZH9M 00703_ Sneak attack on A-02 Transporter. 00703_ A-02 Transporter destroyed. 00713_ K-01 Serf collects debris. 00719_ Connecting with Terminal... 00721_ K-01 Serf collects debris. 00729_ G-34 Mercenary destroyed. 00733_ K-01 Serf collects debris. 00737_ Acquired 20 matter. 00747_ R-06 Scavenger collects Lgt. Treads. 00747_ K-01 Serf collects debris. 00764_ Sneak attack on A-02 Transporter. 00784_ Lgt. Armor Plating severed. 00785_ OC#:OL9JO SU,GHRXAZND 00791_ Aluminum Leg destroyed. 00796_ L-31 Rogue Imp. Ion Engine ripped off. 00796_ Aluminum Leg destroyed. Map ----- +----------------------------------------------------+ | | | | | | | | | | | | | | | | | | | | | ?????????????????????????????????????????????????? | | ?????????????????????????????????????????????????? | | ????????????????????????????????? ????? #????????? | | ???????????????????????????????# ???? #????????? | | ???????????????????????????????# """" #??????### | | ???????????????????????????????#! """" #??????# | | ???????????????????????????????# #??????# | | ???????????????????????????????# """" #?###### | | ???????????????????????????????# """" ### | | ???????????????????????????????# """" + | | ???????????????????????????????# #?# | | ???????????????????????????????#####+###### | | ??????????????#######+#+########## % | | ??????????????# | | ??????????????# gg t | | ??????????????# """ l@ [% """ """ | | ??????????????# """ ########## ! """ %""" | | ??????????????# """ #????????# """ """ | | ??????????????? #????????# | | ??????????????# #######??# | | ???????????? # #??# """ | | ???????????? # #??# """ | | ??????????? # #??# """ | | ?????????? #####+##### # #??# "T" ==! | | ?????????????????????# # #??# """ ==%= | | ?????????????????????# # "%=#??########## ###+## | | ?????????????????????# # To ############# ## ? | | ?????????????????????# # " / % ## ? | | ?????????????????????# # # % ## # | | ?????????????????????? ###+##+## ## # | | ?????????????????????? #! ## + # | | ?????????????????????? # """ ## ########### # | | ?????????????????????????# """ ## ######%#### # | | ???????????????????????? + """%+ # """==! ##### | | ???????????????????????? # ## # """ # | | ??????????????????????? ?# !## # """ # | | ?????????????????????? ??######### # + | | ?????????????????????????????????# # # | | ?????????????????o???????????????# # # | | ?????????????????????????????????# + ! "T" ## | +----------------------------------------------------+ Best States ------------- Heat Dissipation 28 Energy Generation 10 Energy Capacity 125 Matter Stores 300 Matter Capacity 300 Sight Range 16 Terrain Scan Density 10 Armor Coverage 150 Evasion (%) 55 Melee Accuracy 5 Recoil Reduction 3 Item Schematics ----------------- None Robot Schematics ------------------ None Fabricated ------------ Nothing Repaired ---------- Nothing Studied --------- None Alien Tech Used ----------------- None Achievements -------------- None Challenges ------------ None Game ------ Seed GravityElectrostormLoader Manual? 0 Play Time 00:18:38 Cumulative 194.7 hours Start 2025.11.02 @ 17:14:40 End 2025.11.02 @ 17:46:42 Sessions 1 Manual Loads 0 Difficulty Rogue Special Mode None Game No. 202 Rogue 198 Adventurer 3 Explorer 1 Win Type - Total 1 Types 1/0/0/0/0/0/0/0/0/0 Lore% 71 Gallery% 71 Achievement% 50 Wizard Run 0 Options --------- Layout 0 ASCII 0 Keyboard 0 Movement Mouse Keybinds 0 Fullscreen 2 Font 18/SmallcapsGlow Map View 76x50 Zoom Use 0% Tactical HUD 1 Map Filters NONE Filters NONE Steam 1 RUN: cadbb25d-eb45-4ac6-b7d9-14cce9a1f101